[Event "5th Baskent University Open 2022"]
[Site "Ankara"]
[Date "2022.07.03"]
[Round "2.16"]
[White "Kocak, Can"]
[Black "Ipek, Egehan"]
[Result "0-1"]
[ECO "B43"]
[WhiteElo "2057"]
[BlackElo "2196"]
[Annotator "RC"]
[PlyCount "132"]
[EventDate "2022.07.02"]
[EventType "swiss"]
[EventCountry "TUR"]
[SourceTitle "playchess.com"]
[Source "ChessBase"]
[SourceQuality "1"]
[TimeControl "5400+30"]

1. e4 {[%emt 0:01:00]} c5 {[%emt 0:01:00]} 2. Ne2 {[%emt 0:00:30]} e6 {[%emt 0:00:00]} 3. d4 {[%emt 0:00:00]} cxd4 {[%emt 0:00:00]} 4. Nxd4 {[%emt 0:00:00]} a6 {[%emt 0:00:30]} 5. Nc3 {[%emt 0:00:00]} b5 {[%emt 0:00:00]} 6. Bd3 {[%emt 0:08:00]} Qb6 {[%emt 0:00:00]} 7. Nb3 {[%emt 0:02:30]} Qc7 {[%emt 0:00:30]} 8. O-O {[%emt 0:01:30]} Bb7 {[%emt 0:04:30]} 9. a4 {[%emt 0:00:30]} b4 {[%emt 0:00:30]} 10. Na2 {[%emt 0:00:30]} Nf6 {[%emt 0:03:30]} 11. Qe2 {[%emt 0:05:30]} d5 {[%emt 0:16:30]} 12. e5 {[%emt 0:02:30]} Nfd7 {[%emt 0:09:30]} 13. f4 {[%emt 0:02:30]} Nc6 {[%emt 0:02:30]} 14. Be3 {[%emt 0:04:30]} Nb6 {[%emt 0:20:30]} 15. a5 {[%emt 0:10:30]} Nd7 {[%emt 0:01:30]} 16. c3 {[%emt 0:00:30]} bxc3 {[%emt 0:10:30]} 17. Nxc3 {[%emt 0:04:30]} Rb8 {[%emt 0:01:30]} 18. Rfc1 {[%emt 0:00:30]} Ba8 {[%emt 0:04:30]} 19. Nd4 {[%emt 0:18:30]} Nxd4 {[%emt 0:00:30]} 20. Bxd4 {[%emt 0:00:00]} Bc5 {[%emt 0:02:30]} 21. Bxc5 {[%emt 0:18:03]} Qxc5+ {[%emt 0:00:30]} 22. Kh1 {[%emt 0:00:00]} Qb4 {[%emt 0:03:35]} 23. Bxa6 {[%emt 0:02:16]} O-O {[%emt 0:02:47]} 24. Rc2 {[%emt 0:08:10]} Qxf4 {[%emt 0:02:42]} 25. Ra4 {[%emt 0:03:31]} Qxe5 {[%emt 0:03:54]} 26. Qxe5 {[%emt 0:01:26]} Nxe5 {[%emt 0:00:02]} 27. Ne2 {[%emt 0:01:09]} Nc6 {[%emt 0:02:37]} 28. Rc5 {[%emt 0:04:21]} Rxb2 {[%emt 0:00:48]} 29. Bb5 {[%emt 0:00:27]} Rb8 {[%emt 0:03:20]} 30. Bxc6 {[%emt 0:00:53]} Rxe2 {[%emt 0:00:06]} 31. h3 {[%emt 0:00:00]} Rc8 {[%emt 0:02:39]} 32. Bxa8 {[%emt 0:00:21]} Rxc5 {[%emt 0:01:24]} 33. a6 {[%emt 0:00:02]} Rc8 {[%emt 0:01:13]} 34. Bb7 {[%emt 0:00:37]} Rd8 {[%emt 0:00:30]} 35. a7 {[%emt 0:00:19]} g5 {[%emt 0:00:37]} 36. a8=Q {[%emt 0:00:38]} Rxa8 {[%emt 0:00:30]} 37. Rxa8+ {[%emt 0:00:30]} Kg7 {[%emt 0:00:00]} 38. Kg1 {[%emt 0:00:34]} Kf6 {[%emt 0:00:34]} 39. Rh8 {[%emt 0:01:09]} Rb2 {[%emt 0:00:20]} 40. Ba6 {[%emt 0:00:00]} Ra2 {[%emt 0:01:38]} 41. Bb5 {[%emt 0:00:00]} Kg7 {[%emt 0:00:30]} 42. Rd8 {[%emt 0:00:26]} f5 {[%emt 0:00:10]} 43. Rd7+ {[%emt 0:00:43]} Kf6 {[%emt 0:00:30]} 44. Rxh7 {[%emt 0:00:09]} Rb2 {[%emt 0:00:24]} 45. Ba6 {[%emt 0:00:59]} Ke5 {[%emt 0:00:29]} 46. g3 {[%emt 0:00:59]} Ke4 {[%emt 0:00:43]} 47. h4 {[%emt 0:00:05]} Kf3 {[%emt 0:00:32]} 48. hxg5 {[%emt 0:00:30]} Rg2+ {[%emt 0:00:05]} 49. Kf1 {[%emt 0:00:24]} Ra2 {[%emt 0:00:21]} 50. Ke1 {[%emt 0:01:37]} Rxa6 {[%emt 0:00:30]} 51. g6 {[%emt 0:00:00]} e5 {[%emt 0:00:34]} 52. Re7 {[%emt 0:00:35]} e4 {[%emt 0:00:50]} 53. Re5 {[%emt 0:00:13]} d4 {[%emt 0:00:26]} 54. g7 {[%emt 0:00:59]} Ke3 {[%emt 0:00:27]} 55. Kd1 {[%emt 0:01:21]} d3 {[%emt 0:00:52]} 56. Rc5 {[%emt 0:00:30]} Rg6 {[%emt 0:00:07]} 57. Rxf5 {[%emt 0:00:08]} Rxg3 {[%emt 0:00:27]} 58. Rf1 {[%emt 0:00:12]} Rxg7 {[%emt 0:00:25]} 59. Rh1 {[%emt 0:00:02]} Rg3 {[%emt 0:00:05]} 60. Ke1 {[%emt 0:00:09]} Kd4 {[%emt 0:00:58]} 61. Rh8 {[%emt 0:00:04]} e3 {[%emt 0:00:33]} 62. Rd8+ {[%emt 0:00:30]} Kc4 {[%emt 0:00:30]} 63. Rc8+ {[%emt 0:00:00]} Kb5 {[%emt 0:00:02]} 64. Rb8+ {[%emt 0:00:05]} Kc6 {[%emt 0:00:30]} 65. Kf1 {[%emt 0:00:00]} e2+ {[%emt 0:00:00]} 66. Kf2 {[%emt 0:00:18]} Rf3+ {[%emt 0:00:00]} 0-1

[Event "5th Baskent University Open 2022"]
[Site "Ankara"]
[Date "2022.07.03"]
[Round "2.17"]
[White "Eke, Salih"]
[Black "Yerden, Huseyin Eren"]
[Result "1/2-1/2"]
[ECO "E15"]
[WhiteElo "2195"]
[BlackElo "2050"]
[Annotator "RC"]
[PlyCount "226"]
[EventDate "2022.07.02"]
[EventType "swiss"]
[EventCountry "TUR"]
[SourceTitle "playchess.com"]
[Source "ChessBase"]
[SourceQuality "1"]
[TimeControl "5400+30"]

1. d4 {[%emt 0:05:00]} Nf6 {[%emt 0:01:00]} 2. c4 {[%emt 0:00:00]} e6 {[%emt 0:00:30]} 3. Nf3 {[%emt 0:00:00]} b6 {[%emt 0:00:00]} 4. g3 {[%emt 0:00:30]} Ba6 {[%emt 0:00:00]} 5. b3 {[%emt 0:00:30]} Bb4+ {[%emt 0:00:30]} 6. Bd2 {[%emt 0:00:30]} Be7 {[%emt 0:00:00]} 7. Bg2 {[%emt 0:00:30]} Bb7 {[%emt 0:00:00]} 8. O-O {[%emt 0:04:30]} O-O {[%emt 0:00:30]} 9. Bc3 {[%emt 0:05:30]} d5 {[%emt 0:01:30]} 10. Nbd2 {[%emt 0:06:30]} dxc4 {[%emt 0:02:30]} 11. Nxc4 {[%emt 0:00:30]} Nbd7 {[%emt 0:00:30]} 12. Qc2 {[%emt 0:15:30]} Rc8 {[%emt 0:04:30]} 13. Rfd1 {[%emt 0:00:00]} Be4 {[%emt 0:00:30]} 14. Qb2 {[%emt 0:00:00]} b5 {[%emt 0:16:30]} 15. Ncd2 {[%emt 0:03:30]} Ba8 {[%emt 0:04:30]} 16. Ba5 {[%emt 0:00:00]} Nb8 {[%emt 0:02:30]} 17. Ne5 {[%emt 0:01:00]} Bxg2 {[%emt 0:05:30]} 18. Kxg2 {[%emt 0:00:30]} Qd5+ {[%emt 0:02:30]} 19. Kg1 {[%emt 0:03:30]} Rfd8 {[%emt 0:05:30]} 20. e3 {[%emt 0:00:30]} b4 {[%emt 0:06:30]} 21. Ndc4 {[%emt 0:00:30]} Ne4 {[%emt 0:03:30]} 22. a3 {[%emt 0:03:30]} bxa3 {[%emt 0:04:30]} 23. Qe2 {[%emt 0:00:30]} f6 {[%emt 0:02:30]} 24. Nf3 {[%emt 0:06:30]} Nc6 {[%emt 0:03:30]} 25. Be1 {[%emt 0:00:30]} Rb8 {[%emt 0:00:30]} 26. Nxa3 {[%emt 0:12:30]} Rxb3 {[%emt 0:01:30]} 27. Nc4 {[%emt 0:00:00]} Bb4 {[%emt 0:07:30]} 28. Qc2 {[%emt 0:05:00]} Bxe1 {[%emt 0:00:30]} 29. Qxb3 {[%emt 0:01:30]} Bxf2+ {[%emt 0:00:30]} 30. Kg2 {[%emt 0:01:30]} Ng5 {[%emt 0:12:38]} 31. Ncd2 {[%emt 0:03:30]} Qxb3 {[%emt 0:00:30]} 32. Nxb3 {[%emt 0:00:00]} Bxe3 {[%emt 0:00:09]} 33. Nxg5 {[%emt 0:14:11]} Bxg5 {[%emt 0:00:16]} 34. Ra4 {[%emt 0:04:40]} Rb8 {[%emt 0:06:20]} 35. Rc4 {[%emt 0:00:01]} Ne7 {[%emt 0:00:47]} 36. Rd3 {[%emt 0:01:33]} Nd5 {[%emt 0:00:19]} 37. Ra4 {[%emt 0:00:34]} Rb7 {[%emt 0:01:11]} 38. h4 {[%emt 0:02:34]} Bxh4 {[%emt 0:03:44]} 39. Nc5 {[%emt 0:00:01]} Rb6 {[%emt 0:00:00]} 40. gxh4 {[%emt 0:01:53]} Nf4+ {[%emt 0:00:00]} 41. Kf3 {[%emt 0:00:33]} Nxd3 {[%emt 0:00:11]} 42. Nxd3 {[%emt 0:00:00]} a6 {[%emt 0:01:05]} 43. Nc5 {[%emt 0:00:00]} Rd6 {[%emt 0:02:11]} 44. Ke4 {[%emt 0:00:38]} e5 {[%emt 0:00:33]} 45. dxe5 {[%emt 0:00:35]} fxe5 {[%emt 0:00:30]} 46. Kxe5 {[%emt 0:00:00]} Kf7 {[%emt 0:01:11]} 47. Nxa6 {[%emt 0:01:30]} Re6+ {[%emt 0:00:30]} 48. Kf5 {[%emt 0:00:14]} g6+ {[%emt 0:00:56]} 49. Kg4 {[%emt 0:00:50]} Rc6 {[%emt 0:00:39]} 50. Rf4+ {[%emt 0:00:52]} Kg7 {[%emt 0:00:41]} 51. Nb4 {[%emt 0:00:01]} Rc3 {[%emt 0:00:11]} 52. Re4 {[%emt 0:00:39]} c6 {[%emt 0:00:48]} 53. Rd4 {[%emt 0:00:32]} h5+ {[%emt 0:01:29]} 54. Kf4 {[%emt 0:00:30]} c5 {[%emt 0:00:30]} 55. Rd7+ {[%emt 0:00:30]} Kh6 {[%emt 0:00:00]} 56. Nd3 {[%emt 0:00:00]} Rc4+ {[%emt 0:00:00]} 57. Kg3 {[%emt 0:00:15]} Rg4+ {[%emt 0:00:43]} 58. Kh3 {[%emt 0:00:30]} g5 {[%emt 0:00:00]} 59. Rd6+ {[%emt 0:00:09]} Kg7 {[%emt 0:00:20]} 60. hxg5 {[%emt 0:00:15]} Rxg5 {[%emt 0:00:01]} 61. Rc6 {[%emt 0:00:41]} Rd5 {[%emt 0:01:09]} 62. Nxc5 {[%emt 0:00:30]} Kf7 {[%emt 0:00:00]} 63. Kh4 {[%emt 0:00:08]} Ke7 {[%emt 0:00:18]} 64. Rc8 {[%emt 0:00:00]} Rd8 {[%emt 0:00:59]} 65. Rc6 {[%emt 0:00:26]} Rd5 {[%emt 0:00:00]} 66. Nb3 {[%emt 0:00:20]} Rb5 {[%emt 0:00:23]} 67. Nd2 {[%emt 0:00:30]} Kf7 {[%emt 0:00:00]} 68. Nf3 {[%emt 0:00:00]} Ke7 {[%emt 0:00:13]} 69. Ng5 {[%emt 0:00:24]} Kd7 {[%emt 0:00:30]} 70. Ra6 {[%emt 0:00:00]} Rd5 {[%emt 0:00:00]} 71. Kxh5 {[%emt 0:00:10]} Rd6 {[%emt 0:00:00]} 72. Ra1 {[%emt 0:00:17]} Rd5 {[%emt 0:00:17]} 73. Kg6 {[%emt 0:00:30]} Rd6+ {[%emt 0:00:30]} 74. Kf5 {[%emt 0:00:00]} Rd5+ {[%emt 0:00:00]} 75. Kf4 {[%emt 0:00:00]} Rd2 {[%emt 0:00:18]} 76. Ne4 {[%emt 0:00:00]} Rh2 {[%emt 0:00:01]} 77. Ra6 {[%emt 0:00:00]} Kc7 {[%emt 0:00:17]} 78. Ke5 {[%emt 0:00:15]} Rh5+ {[%emt 0:00:30]} 79. Kd4 {[%emt 0:00:00]} Rh1 {[%emt 0:00:00]} 80. Ra3 {[%emt 0:01:11]} Rd1+ {[%emt 0:00:15]} 81. Kc5 {[%emt 0:00:30]} Rc1+ {[%emt 0:00:30]} 82. Nc3 {[%emt 0:00:00]} Kd7 {[%emt 0:00:06]} 83. Kd5 {[%emt 0:00:00]} Kc7 {[%emt 0:00:04]} 84. Nb5+ {[%emt 0:00:04]} Kb6 {[%emt 0:00:05]} 85. Nd4 {[%emt 0:00:32]} Rh1 {[%emt 0:00:30]} 86. Rb3+ {[%emt 0:00:00]} Kc7 {[%emt 0:00:33]} 87. Ne6+ {[%emt 0:00:05]} Kc8 {[%emt 0:00:00]} 88. Kc6 {[%emt 0:00:00]} Rc1+ {[%emt 0:00:47]} 89. Nc5 {[%emt 0:00:27]} Rh1 {[%emt 0:00:00]} 90. Re3 {[%emt 0:00:24]} Rh6+ {[%emt 0:00:13]} 91. Ne6 {[%emt 0:00:30]} Rh1 {[%emt 0:00:00]} 92. Rg3 {[%emt 0:00:00]} Rc1+ {[%emt 0:00:21]} 93. Nc5 {[%emt 0:00:21]} Kd8 {[%emt 0:00:00]} 94. Re3 {[%emt 0:00:18]} Rc2 {[%emt 0:00:19]} 95. Re1 {[%emt 0:00:00]} Rc3 {[%emt 0:00:32]} 96. Kd6 {[%emt 0:00:00]} Rc2 {[%emt 0:00:43]} 97. Ne6+ {[%emt 0:00:50]} Kc8 {[%emt 0:00:30]} 98. Rb1 {[%emt 0:00:30]} Rd2+ {[%emt 0:00:30]} 99. Kc6 {[%emt 0:00:30]} Rc2+ {[%emt 0:00:30]} 100. Nc5 {[%emt 0:00:00]} Rh2 {[%emt 0:00:00]} 101. Re1 {[%emt 0:00:00]} Rh6+ {[%emt 0:00:13]} 102. Ne6 {[%emt 0:00:14]} Rh2 {[%emt 0:00:18]} 103. Rg1 {[%emt 0:00:56]} Rc2+ {[%emt 0:00:26]} 104. Nc5 {[%emt 0:00:00]} Kd8 {[%emt 0:00:30]} 105. Rg7 {[%emt 0:00:12]} Ke8 {[%emt 0:00:30]} 106. Kd6 {[%emt 0:00:00]} Rd2+ {[%emt 0:00:00]} 107. Ke5 {[%emt 0:00:09]} Re2+ {[%emt 0:00:28]} 108. Ne4 {[%emt 0:00:00]} Re1 {[%emt 0:00:00]} 109. Kd5 {[%emt 0:00:07]} Kf8 {[%emt 0:00:42]} 110. Rc7 {[%emt 0:00:11]} Rd1+ {[%emt 0:01:03]} 111. Ke6 {[%emt 0:00:30]} Re1 {[%emt 0:00:00]} 112. Rf7+ {[%emt 0:00:07]} Ke8 {[%emt 0:00:37]} 113. Rf4 {[%emt 0:00:02]} Kd8 {[%emt 0:00:10]} 1/2-1/2

[Event "5th Baskent University Open 2022"]
[Site "Ankara"]
[Date "2022.07.03"]
[Round "2.18"]
[White "Bekiragaoglu, Umut"]
[Black "Primbetov, Marat"]
[Result "1-0"]
[ECO "B60"]
[WhiteElo "2067"]
[BlackElo "2186"]
[Annotator "RC"]
[PlyCount "93"]
[EventDate "2022.07.02"]
[EventType "swiss"]
[EventCountry "TUR"]
[SourceTitle "playchess.com"]
[Source "ChessBase"]
[SourceQuality "1"]
[TimeControl "5400+30"]

1. e4 {[%emt 0:01:00]} c5 {[%emt 0:06:00]} 2. Ne2 {[%emt 0:00:30]} Nc6 {[%emt 0:00:30]} 3. d4 {[%emt 0:00:00]} cxd4 {[%emt 0:00:30]} 4. Nxd4 {[%emt 0:00:00]} Nf6 {[%emt 0:00:00]} 5. Nc3 {[%emt 0:00:00]} d6 {[%emt 0:00:00]} 6. Bg5 {[%emt 0:00:00]} Qa5 {[%emt 0:06:30]} 7. Bxf6 {[%emt 0:12:30]} gxf6 {[%emt 0:00:30]} 8. Nb3 {[%emt 0:01:30]} Qg5 {[%emt 0:13:30]} 9. Nd5 {[%emt 0:03:30]} Rb8 {[%emt 0:00:30]} 10. f4 {[%emt 0:02:30]} Qh6 {[%emt 0:05:30]} 11. Qd2 {[%emt 0:06:30]} Bd7 {[%emt 0:02:30]} 12. Nc7+ {[%emt 0:02:30]} Kd8 {[%emt 0:02:30]} 13. Nb5 {[%emt 0:01:30]} a6 {[%emt 0:16:30]} 14. N5d4 {[%emt 0:01:30]} e5 {[%emt 0:06:30]} 15. Ne2 {[%emt 0:04:30]} Bg4 {[%emt 0:04:30]} 16. f5 {[%emt 0:06:30]} Qxd2+ {[%emt 0:02:30]} 17. Nxd2 {[%emt 0:01:30]} d5 {[%emt 0:05:30]} 18. Ng3 {[%emt 0:01:30]} Rg8 {[%emt 0:03:30]} 19. Bd3 {[%emt 0:05:30]} Bh6 {[%emt 0:17:48]} 20. exd5 {[%emt 0:02:30]} Bxd2+ {[%emt 0:01:10]} 21. Kxd2 {[%emt 0:00:30]} Nb4 {[%emt 0:01:17]} 22. Be4 {[%emt 0:00:30]} a5 {[%emt 0:00:18]} 23. h3 {[%emt 0:01:30]} Bf3 {[%emt 0:00:42]} 24. gxf3 {[%emt 0:00:30]} Rxg3 {[%emt 0:00:00]} 25. Rag1 {[%emt 0:00:00]} Rxg1 {[%emt 0:00:05]} 26. Rxg1 {[%emt 0:00:00]} Ke7 {[%emt 0:00:00]} 27. Rg7 {[%emt 0:00:30]} h6 {[%emt 0:00:43]} 28. a3 {[%emt 0:03:30]} Na6 {[%emt 0:00:01]} 29. Rh7 {[%emt 0:01:30]} Rd8 {[%emt 0:02:23]} 30. Rxh6 {[%emt 0:00:30]} b5 {[%emt 0:00:24]} 31. b3 {[%emt 0:00:30]} b4 {[%emt 0:01:08]} 32. axb4 {[%emt 0:01:30]} axb4 {[%emt 0:00:30]} 33. Kd3 {[%emt 0:00:00]} Nc5+ {[%emt 0:00:52]} 34. Kc4 {[%emt 0:00:00]} Nxe4 {[%emt 0:01:00]} 35. fxe4 {[%emt 0:00:30]} Rc8+ {[%emt 0:00:05]} 36. Kxb4 {[%emt 0:00:30]} Rxc2 {[%emt 0:00:02]} 37. Kb5 {[%emt 0:06:30]} Re2 {[%emt 0:00:30]} 38. Rh4 {[%emt 0:00:30]} Kd6 {[%emt 0:00:00]} 39. b4 {[%emt 0:00:00]} Rf2 {[%emt 0:00:27]} 40. Kb6 {[%emt 0:02:00]} Rf4 {[%emt 0:00:26]} 41. Rg4 {[%emt 0:00:00]} Rf3 {[%emt 0:00:21]} 42. Rg7 {[%emt 0:07:00]} Re3 {[%emt 0:02:01]} 43. Rxf7 {[%emt 0:00:30]} Rxe4 {[%emt 0:00:30]} 44. Rxf6+ {[%emt 0:00:30]} Kxd5 {[%emt 0:00:00]} 45. b5 {[%emt 0:00:00]} Rh4 {[%emt 0:00:01]} 46. Rf8 {[%emt 0:03:00]} e4 {[%emt 0:02:12]} 47. f6 {[%emt 0:00:30]} 1-0

[Event "5th Baskent University Open 2022"]
[Site "Ankara"]
[Date "2022.07.03"]
[Round "2.19"]
[White "Khoder, Akram"]
[Black "Primbetov, Kazbek"]
[Result "1-0"]
[ECO "A42"]
[WhiteElo "2038"]
[BlackElo "2147"]
[Annotator "RC"]
[PlyCount "85"]
[EventDate "2022.07.02"]
[EventType "swiss"]
[EventCountry "TUR"]
[SourceTitle "playchess.com"]
[Source "ChessBase"]
[SourceQuality "1"]
[TimeControl "5400+30"]

1. d4 {[%emt 0:01:00]} g6 {[%emt 0:06:00]} 2. c4 {[%emt 0:00:00]} Bg7 {[%emt 0:00:30]} 3. g3 {[%emt 0:00:00]} d6 {[%emt 0:00:30]} 4. Nf3 {[%emt 0:00:30]} Nd7 {[%emt 0:00:00]} 5. Bg2 {[%emt 0:00:30]} e5 {[%emt 0:00:00]} 6. Nc3 {[%emt 0:01:30]} Ne7 {[%emt 0:00:30]} 7. O-O {[%emt 0:00:30]} O-O {[%emt 0:00:00]} 8. e4 {[%emt 0:09:30]} exd4 {[%emt 0:18:00]} 9. Nxd4 {[%emt 0:01:30]} Nc6 {[%emt 0:00:30]} 10. Nde2 {[%emt 0:10:30]} a6 {[%emt 0:05:30]} 11. Qd2 {[%emt 0:05:30]} Nde5 {[%emt 0:02:30]} 12. b3 {[%emt 0:01:30]} Bh3 {[%emt 0:00:30]} 13. f4 {[%emt 0:00:30]} Bxg2 {[%emt 0:00:30]} 14. Kxg2 {[%emt 0:00:30]} Nd7 {[%emt 0:01:30]} 15. f5 {[%emt 0:09:30]} Nc5 {[%emt 0:05:30]} 16. Bb2 {[%emt 0:00:00]} Ne5 {[%emt 0:17:30]} 17. Nf4 {[%emt 0:11:00]} b5 {[%emt 0:06:30]} 18. Nfd5 {[%emt 0:20:30]} f6 {[%emt 0:13:30]} 19. cxb5 {[%emt 0:09:07]} axb5 {[%emt 0:00:47]} 20. Nb4 {[%emt 0:02:59]} Kh8 {[%emt 0:02:18]} 21. Rad1 {[%emt 0:03:09]} Qb8 {[%emt 0:03:26]} 22. Rfe1 {[%emt 0:02:12]} Qb7 {[%emt 0:02:49]} 23. Qd5 {[%emt 0:00:00]} Qb6 {[%emt 0:02:21]} 24. Qd4 {[%emt 0:03:42]} Rfe8 {[%emt 0:04:00]} 25. Ncd5 {[%emt 0:02:33]} Qb7 {[%emt 0:00:52]} 26. Rc1 {[%emt 0:00:31]} gxf5 {[%emt 0:05:26]} 27. exf5 {[%emt 0:00:24]} Qc8 {[%emt 0:01:03]} 28. Rf1 {[%emt 0:01:05]} Qb7 {[%emt 0:00:52]} 29. Kh3 {[%emt 0:01:04]} c6 {[%emt 0:01:03]} 30. Nf4 {[%emt 0:00:14]} Qd7 {[%emt 0:00:16]} 31. Nh5 {[%emt 0:00:44]} Rad8 {[%emt 0:00:25]} 32. Rcd1 {[%emt 0:00:12]} Qf7 {[%emt 0:00:30]} 33. Qh4 {[%emt 0:00:00]} Ne4 {[%emt 0:00:33]} 34. Bc1 {[%emt 0:00:58]} Nc3 {[%emt 0:00:23]} 35. Rd2 {[%emt 0:01:30]} c5 {[%emt 0:00:30]} 36. Nd3 {[%emt 0:00:29]} Nxd3 {[%emt 0:01:04]} 37. Rxd3 {[%emt 0:00:30]} Nxa2 {[%emt 0:00:30]} 38. Bb2 {[%emt 0:00:00]} Re2 39. Ba1 {[%emt 0:00:29]} Nb4 {[%emt 0:00:50]} 40. Nxg7 {[%emt 0:00:55]} Nxd3 {[%emt 0:00:42]} 41. Bxf6 {[%emt 0:00:11]} Nf2+ {[%emt 0:00:19]} 42. Rxf2 {[%emt 0:00:13]} Rxf2 {[%emt 0:00:30]} 43. Ne6+ {[%emt 0:00:04]} 1-0

[Event "5th Baskent University Open 2022"]
[Site "Ankara"]
[Date "2022.07.03"]
[Round "2.21"]
[White "Turkmen, Ataberk"]
[Black "Erdal, Kerem"]
[Result "1-0"]
[ECO "B21"]
[WhiteElo "1935"]
[BlackElo "1511"]
[Annotator "NA RC"]
[PlyCount "103"]
[EventDate "2022.07.02"]
[EventType "swiss"]
[EventCountry "TUR"]
[SourceTitle "playchess.com"]
[Source "ChessBase"]
[SourceQuality "1"]
[TimeControl "5400+30"]

1. e4 {[%emt 0:01:00]} d5 {[%emt 0:01:00]} 2. e5 {[%emt 0:05:30]} c5 {[%emt 0:07:30]} 3. f4 {[%emt 0:00:30]} Bf5 {[%emt 0:03:30]} 4. Nf3 {[%emt 0:02:30]} Nc6 {[%emt 0:04:30]} 5. d3 {[%emt 0:15:30]} e6 {[%emt 0:10:30]} 6. Be2 {[%emt 0:17:30]} Nh6 {[%emt 0:12:30]} 7. O-O {[%emt 0:03:30]} Bg4 {[%emt 0:08:30]} 8. c3 {[%emt 0:02:30]} Be7 {[%emt 0:06:30]} 9. Na3 {[%emt 0:14:30]} Nf5 {[%emt 0:10:30]} 10. Nc2 {[%emt 0:02:30]} O-O {[%emt 0:16:28]} 11. Nd2 {[%emt 0:07:30]} Bxe2 {[%emt 0:04:12]} 12. Qxe2 {[%emt 0:00:30]} f6 {[%emt 0:04:18]} 13. g4 {[%emt 0:08:57]} Nh6 {[%emt 0:02:27]} 14. exf6 {[%emt 0:00:20]} Rxf6 {[%emt 0:03:41]} 15. g5 {[%emt 0:01:37]} Rg6 {[%emt 0:00:15]} 16. Nf3 {[%emt 0:00:37]} Nf5 {[%emt 0:00:42]} 17. Ne3 {[%emt 0:01:28]} Qd7 {[%emt 0:01:21]} 18. Ng4 {[%emt 0:00:35]} Bd6 {[%emt 0:00:33]} 19. Bd2 {[%emt 0:03:10]} Re8 {[%emt 0:00:27]} 20. Rae1 {[%emt 0:02:44]} Qc7 {[%emt 0:00:34]} 21. Ne3 {[%emt 0:02:09]} Nxe3 {[%emt 0:00:32]} 22. Qxe3 {[%emt 0:00:09]} d4 {[%emt 0:00:27]} 23. Qe4 {[%emt 0:00:11]} Ne7 {[%emt 0:00:32]} 24. Nh4 {[%emt 0:00:32]} b6 {[%emt 0:00:29]} 25. Nxg6 {[%emt 0:00:43]} Nxg6 {[%emt 0:00:03]} 26. Re2 {[%emt 0:00:39]} Re7 {[%emt 0:00:55]} 27. f5 {[%emt 0:03:18]} exf5 {[%emt 0:00:42]} 28. Qd5+ {[%emt 0:00:18]} Kh8 {[%emt 0:00:18]} 29. Qa8+ {[%emt 0:00:44]} Qb8 {[%emt 0:00:30]} 30. Qxb8+ {[%emt 0:00:30]} Bxb8 {[%emt 0:00:30]} 31. Rxe7 {[%emt 0:00:00]} Nxe7 {[%emt 0:00:00]} 32. Re1 {[%emt 0:00:00]} Ng8 {[%emt 0:00:24]} 33. Re8 {[%emt 0:00:33]} Bd6 {[%emt 0:00:29]} 34. Ra8 {[%emt 0:02:02]} a5 {[%emt 0:00:43]} 35. Rd8 {[%emt 0:00:26]} Be5 {[%emt 0:00:55]} 36. Rd5 {[%emt 0:00:45]} dxc3 {[%emt 0:00:30]} 37. Bxc3 {[%emt 0:00:20]} Bxc3 {[%emt 0:00:04]} 38. bxc3 {[%emt 0:00:30]} g6 {[%emt 0:00:30]} 39. Rd7 {[%emt 0:00:00]} h6 {[%emt 0:00:25]} 40. h4 {[%emt 0:00:00]} b5 {[%emt 0:00:17]} 41. Ra7 {[%emt 0:00:44]} a4 {[%emt 0:01:08]} 42. a3 {[%emt 0:00:15]} hxg5 {[%emt 0:00:59]} 43. hxg5 {[%emt 0:00:02]} b4 {[%emt 0:00:36]} 44. cxb4 {[%emt 0:00:30]} cxb4 {[%emt 0:00:30]} 45. axb4 {[%emt 0:00:30]} a3 {[%emt 0:00:00]} 46. b5 {[%emt 0:00:00]} a2 {[%emt 0:00:00]} 47. b6 {[%emt 0:00:27]} Ne7 {[%emt 0:00:00]} 48. b7 {[%emt 0:00:00]} Nc6 {[%emt 0:00:00]} 49. Rxa2 {[%emt 0:00:24]} Kg7 {[%emt 0:00:00]} 50. Ra8 {[%emt 0:00:00]} Kf7 {[%emt 0:00:00]} 51. b8=Q {[%emt 0:00:20]} Nxb8 {[%emt 0:00:15]} 52. Rxb8 {[%emt 0:00:00]} 1-0

[Event "5th Baskent University Open 2022"]
[Site "Ankara"]
[Date "2022.07.03"]
[Round "2.22"]
[White "Ozturk, Mustafa"]
[Black "Buke, Furkan"]
[Result "0-1"]
[ECO "B72"]
[WhiteElo "1530"]
[BlackElo "1979"]
[Annotator "NA RC"]
[PlyCount "78"]
[EventDate "2022.07.02"]
[EventType "swiss"]
[EventCountry "TUR"]
[SourceTitle "playchess.com"]
[Source "ChessBase"]
[SourceQuality "1"]
[TimeControl "5400+30"]

1. e4 {[%emt 0:01:00]} c5 {[%emt 0:01:00]} 2. Nf3 {[%emt 0:00:00]} d6 {[%emt 0:00:30]} 3. d4 {[%emt 0:00:00]} cxd4 {[%emt 0:00:30]} 4. Nxd4 {[%emt 0:00:30]} Nf6 {[%emt 0:00:30]} 5. Nc3 {[%emt 0:00:30]} Nc6 {[%emt 0:00:00]} 6. Be2 {[%emt 0:00:00]} g6 {[%emt 0:03:00]} 7. Be3 {[%emt 0:00:00]} Bg7 {[%emt 0:00:00]} 8. Qd2 {[%emt 0:00:00]} O-O {[%emt 0:04:00]} 9. O-O-O {[%emt 0:00:00]} Nxd4 {[%emt 0:02:30]} 10. Bxd4 {[%emt 0:00:30]} Be6 {[%emt 0:00:00]} 11. Kb1 {[%emt 0:01:30]} Qc7 {[%emt 0:11:00]} 12. h4 {[%emt 0:05:30]} Rfc8 {[%emt 0:00:30]} 13. h5 {[%emt 0:00:30]} Qa5 {[%emt 0:00:30]} 14. a3 {[%emt 0:01:30]} Rab8 {[%emt 0:06:30]} 15. hxg6 {[%emt 0:00:30]} fxg6 {[%emt 0:01:30]} 16. Bd3 {[%emt 0:14:30]} b5 {[%emt 0:05:30]} 17. Qg5 {[%emt 0:01:30]} Bf7 {[%emt 0:16:30]} 18. f4 $17 {[%emt 0:02:30]} (18. Nd5 $14 {was the only good move.} Qd8 19. Qh4 (19. Bxa7 Nxd5 20. Bxb8 b4 $11)) 18... e5 {[%emt 0:02:30]} 19. fxe5 {[%emt 0:12:30]} b4 {[%emt 0:00:30]} 20. axb4 {[%emt 0:07:30]} Qxb4 {[%emt 0:12:30]} 21. Bb5 {[%emt 0:13:30]} Rxb5 {[%emt 0:04:30]} 22. Nxb5 {[%emt 0:00:30]} Qxb5 {[%emt 0:00:30]} 23. Qf4 {[%emt 0:08:30]} Qc4 {[%emt 0:02:30]} 24. c3 {[%emt 0:05:30]} Qa2+ {[%emt 0:03:30]} 25. Kc1 {[%emt 0:00:30]} Qa1+ {[%emt 0:01:30]} 26. Kd2 {[%emt 0:00:30]} Qxb2+ {[%emt 0:00:00]} 27. Ke3 {[%emt 0:02:30]} dxe5 {[%emt 0:02:44]} 28. Bxe5 {[%emt 0:00:30]} Qb6+ {[%emt 0:01:11]} 29. Kf3 {[%emt 0:01:30]} Ne8 {[%emt 0:03:00]} 30. Bxg7 {[%emt 0:19:02]} Nxg7 {[%emt 0:00:20]} 31. Rd3 {[%emt 0:01:16]} Bc4 {[%emt 0:01:14]} 32. Rd6 {[%emt 0:00:56]} Qb2 {[%emt 0:01:10]} 33. Qe3 {[%emt 0:00:36]} Rf8+ {[%emt 0:01:53]} 34. Kg3 {[%emt 0:00:13]} Qb5 {[%emt 0:00:14]} 35. Kh2 {[%emt 0:01:01]} Qe5+ {[%emt 0:01:02]} 36. Qg3 {[%emt 0:00:08]} Rf4 {[%emt 0:01:36]} 37. Rd8+ {[%emt 0:00:42]} Kf7 {[%emt 0:00:06]} 38. Rd7+ {[%emt 0:01:08]} Ke8 {[%emt 0:00:25]} 39. Rxg7 {[%emt 0:00:19]} Rh4+ {[%emt 0:00:11]} 0-1